bitfinex/quotes_SOLUSD_20251118
["timestamp","ask_amount","ask_price","bid_price","bid_amount"]
[1763429235574,9.19739097,131.45,131.43,0.1]
[1763429236382,0.68,131.47,131.43,0.1]
[1763429236584,9.19739097,131.46,131.43,0.1]
[1763429236790,0.68,131.47,131.43,0.1]
[1763429237015,9.19739097,131.45,131.43,0.1]
[1763429237379,0.68,131.47,131.43,0.1]
[1763429237620,9.19739097,131.46,131.43,0.1]
[1763429237817,0.68,131.49,131.43,19.77621866]
[1763429238113,9.19739097,131.48,131.43,26.01014478]
[1763429238485,9.19739097,131.47,131.43,16.80275381]
[1763429238690,9.19739097,131.46,131.43,9.88882769]
[1763429238994,0.67,131.46,131.43,9.88882769]
[1763429239187,9.19739097,131.45,131.43,0.1]
[1763429239389,9.19739097,131.46,131.43,0.1]
[1763429239913,9.19739097,131.44,131.43,0.1]
[1763429240286,9.86739097,131.44,131.43,0.1]
[1763429240594,18.12096,131.41,131.37,6.23392612]
[1763429240804,9.19739097,131.38,131.37,6.23392612]
[1763429241112,9.19739097,131.38,131.36,2.03593088]
[1763429241318,18.12096,131.41,131.36,2.03593088]
[1763429241319,0.67,131.37,131.36,2.03593088]
[1763429241489,9.19739097,131.37,131.36,2.03593088]
[1763429241885,0.67,131.4,131.36,2.03593088]
[1763429242197,9.19739097,131.37,131.36,2.03593088]
[1763429242392,0.67,131.37,131.36,2.03593088]
[1763429242617,9.86739097,131.37,131.36,2.03593088]
[1763429243186,0.67,131.42,131.36,2.71593088]
[1763429243406,0.67,131.45,131.39,9.78882769]
[1763429243601,9.19739097,131.43,131.39,9.19739097]
[1763429243916,0.67,131.5,131.41,18.98621866]
[1763429244122,9.19739097,131.52,131.41,18.98621866]
[1763429244123,9.19739097,131.46,131.42,9.19739097]
[1763429244465,9.19739097,131.46,131.42,0.68]
[1763429244618,9.19739097,131.46,131.42,9.87739097]
[1763429245025,9.19739097,131.45,131.42,0.68]
[1763429246819,9.19739097,131.46,131.42,0.68]
[1763429247115,9.19739097,131.45,131.42,0.68]
[1763429247323,9.19739097,131.44,131.4,19.66621866]
[1763429247617,9.19739097,131.44,131.41,0.68]
[1763429248001,9.19739097,131.44,131.39,18.98621866]
[1763429248200,9.19739097,131.44,131.4,0.68]
[1763429248791,9.19739097,131.46,131.42,9.78882769]
[1763429249007,9.19739097,131.46,131.42,9.19739097]
[1763429249228,9.19739097,131.46,131.42,9.87739097]
[1763429249443,0.67,131.48,131.42,9.87739097]
[1763429249444,9.19739097,131.47,131.42,9.87739097]
[1763429249595,9.19739097,131.47,131.39,6.21788883]
[1763429249596,27.31835097,131.47,131.43,9.78882769]
[1763429250027,27.31835097,131.47,131.43,10.46882769]
[1763429250330,0.67,131.51,131.47,9.78882769]
[1763429250623,0.67,131.53,131.47,18.98621866]
[1763429250837,9.19739097,131.52,131.47,18.98621866]
[1763429251004,27.31835097,131.52,131.49,9.78882769]
[1763429251206,0.67,131.53,131.49,10.46882769]
[1763429251531,9.19739097,131.52,131.49,10.46882769]
[1763429252299,27.98835097,131.53,131.49,10.46882769]
[1763429252499,18.12096,131.53,131.49,19.66621866]
[1763429252719,9.19739097,131.53,131.49,10.46882769]
[1763429253032,9.86739097,131.53,131.49,10.46882769]
[1763429253205,9.19739097,131.53,131.49,10.46882769]
[1763429254203,0.67,131.55,131.49,10.46882769]
[1763429254403,9.19739097,131.53,131.49,19.66621866]
[1763429254620,9.19739097,131.6,131.51,9.78882769]
[1763429254926,9.15811408,131.54,131.51,9.78882769]
[1763429255345,9.19739097,131.55,131.51,9.78882769]
[1763429255519,9.86739097,131.55,131.5,9.87739097]
[1763429255703,9.19739097,131.55,131.51,9.78882769]
[1763429257342,27.98835097,131.56,131.52,0.68]
[1763429257548,27.98835097,131.56,131.52,9.87739097]
[1763429258158,27.31835097,131.56,131.52,9.78882769]
[1763429258441,27.31835097,131.54,131.49,19.66621866]
[1763429258632,27.31835097,131.54,131.5,9.19739097]
[1763429258806,18.12096,131.54,131.5,9.87739097]
[1763429259008,9.86739097,131.55,131.51,10.46882769]
[1763429259543,9.19739097,131.56,131.52,9.87739097]
[1763429259844,0.67,131.56,131.52,9.87739097]
[1763429260029,9.19739097,131.56,131.49,6.89788883]
[1763429260209,9.19739097,131.54,131.5,9.78882769]
[1763429260725,9.19739097,131.54,131.5,10.46882769]
[1763429261035,9.86739097,131.54,131.5,10.46882769]
[1763429261240,18.12096,131.55,131.52,9.78882769]
[1763429261419,27.98835097,131.55,131.5,9.87739097]
[1763429261742,27.31835097,131.55,131.51,9.19739097]
[1763429261913,27.31835097,131.55,131.51,9.89739097]
[1763429262346,28.01835097,131.55,131.49,16.00671652]
[1763429262515,28.01835097,131.55,131.51,9.19739097]
[1763429262912,9.89739097,131.54,131.49,10.48882769]
[1763429263273,9.89739097,131.54,131.46,8.11918827]
[1763429263274,9.19739097,131.52,131.47,9.78882769]
[1763429263425,9.19739097,131.52,131.47,19.68621866]
[1763429263619,9.89739097,131.52,131.49,9.78882769]
[1763429263821,18.12096,131.55,131.49,9.78882769]
[1763429263822,9.19739097,131.54,131.49,18.98621866]
[1763429264052,27.31835097,131.54,131.49,19.68621866]
[1763429264233,28.01835097,131.54,131.49,19.68621866]
[1763429264443,9.19739097,131.53,131.5,0.7]
[1763429265158,9.19739097,131.53,131.49,18.98621866]
[1763429265324,9.19739097,131.53,131.49,10.48882769]
[1763429266244,9.89739097,131.52,131.49,9.78882769]
[1763429266524,9.19739097,131.52,131.49,9.78882769]
[1763429266725,9.19739097,131.52,131.49,10.48882769]
[1763429267141,9.89739097,131.53,131.49,10.48882769]
[1763429267340,9.19739097,131.52,131.49,10.48882769]
[1763429268148,18.12096,131.54,131.49,10.48882769]
[1763429268450,9.19739097,131.52,131.49,10.48882769]
[1763429268630,18.82096,131.54,131.5,0.7]
[1763429268831,9.19739097,131.53,131.49,10.48882769]
[1763429269033,18.12096,131.54,131.51,9.78882769]
[1763429269336,18.12096,131.54,131.52,0.7]
[1763429269749,18.12096,131.54,131.51,18.98621866]
[1763429270046,18.12096,131.54,131.51,10.48882769]
[1763429270550,0.7,131.57,131.53,9.78882769]
[1763429270551,9.19739097,131.57,131.53,9.78882769]
[1763429270723,9.89739097,131.57,131.53,19.68621866]
[1763429270924,9.89739097,131.57,131.53,10.48882769]
[1763429271646,9.19739097,131.57,131.53,10.48882769]
[1763429271952,4.66582211,131.59,131.54,0.7]
[1763429272253,9.19739097,131.57,131.54,0.7]
[1763429273837,9.19739097,131.57,131.53,10.48882769]
[1763429274033,9.19739097,131.57,131.54,0.7]
[1763429274755,9.89739097,131.57,131.53,9.78882769]
[1763429275046,9.19739097,131.57,131.53,10.48882769]
[1763429275933,0.7,131.58,131.54,0.7]
[1763429276136,9.19739097,131.57,131.54,0.7]
[1763429276534,9.19739097,131.59,131.55,9.78882769]
[1763429276731,27.31835097,131.59,131.55,18.98621866]
[1763429276928,9.19739097,131.58,131.54,0.7]
[1763429277128,18.12096,131.56,131.51,0.7]
[1763429277347,18.12096,131.56,131.5,6.21788883]
[1763429277348,9.19739097,131.54,131.5,9.78882769]
[1763429277533,9.19739097,131.55,131.51,9.89739097]
[1763429277945,0.7,131.56,131.52,0.7]
[1763429278226,9.89739097,131.55,131.5,9.19739097]
[1763429278443,9.19739097,131.54,131.49,19.68621866]
[1763429278760,13.16273994,131.6,131.53,9.19739097]
[1763429278761,18.12096,131.58,131.53,9.19739097]
[1763429278924,18.12096,131.58,131.55,9.19739097]
[1763429279129,18.12096,131.58,131.54,9.19739097]
[1763429279429,13.86273994,131.6,131.55,9.89739097]
[1763429279634,9.19739097,131.59,131.56,9.78882769]
[1763429279829,9.19739097,131.58,131.55,0.7]
[1763429280036,9.19739097,131.57,131.54,9.78882769]
[1763429280251,9.89739097,131.57,131.53,0.7]
[1763429280448,9.19739097,131.55,131.5,6.18383783]
[1763429280645,9.19739097,131.55,131.51,9.78882769]
[1763429280859,9.19739097,131.54,131.5,9.89739097]
[1763429281157,18.12096,131.57,131.5,0.7]
[1763429281353,9.19739097,131.54,131.51,0.7]
[1763429281656,9.89739097,131.55,131.51,0.7]
[1763429281836,18.12096,131.57,131.51,9.89739097]
[1763429282043,9.19739097,131.54,131.5,9.78882769]
[1763429282363,9.19739097,131.54,131.5,10.48882769]
[1763429282658,9.89739097,131.54,131.5,10.48882769]
[1763429283155,9.19739097,131.54,131.51,0.7]
[1763429283357,0.7,131.56,131.51,0.7]
[1763429283554,9.19739097,131.54,131.51,0.7]
[1763429283949,15.16273994,131.6,131.52,18.98621866]
[1763429283950,0.7,131.59,131.52,18.98621866]
[1763429284262,9.19739097,131.57,131.52,18.98621866]
[1763429284445,9.19739097,131.57,131.52,19.68621866]
[1763429284645,9.19739097,131.57,131.53,9.89739097]
[1763429284942,27.31835097,131.57,131.53,9.89739097]
[1763429285349,27.31835097,131.57,131.53,9.19739097]
[1763429285555,27.31835097,131.57,131.54,0.7]
[1763429285848,18.12096,131.57,131.54,0.7]
[1763429286360,3.96534897,131.6,131.57,9.78882769]
[1763429286658,0.7,131.66,131.6,9.78882769]
[1763429286838,13.16267653,131.65,131.62,9.78882769]
[1763429287031,9.19739097,131.65,131.6,9.89739097]
[1763429287232,9.19739097,131.65,131.61,0.7]
[1763429287549,9.19739097,131.64,131.61,0.7]
[1763429288952,5.77113274,131.64,131.61,0.7]
[1763429289633,6.47113274,131.65,131.61,0.7]
[1763429290133,4.16509437,131.69,131.6,9.78882769]
[1763429290134,5.77113274,131.63,131.6,9.78882769]
[1763429290755,5.77113274,131.63,131.6,10.48882769]
[1763429290943,5.77113274,131.62,131.59,9.78882769]
[1763429291143,5.77113274,131.6,131.58,9.78882769]
[1763429291343,0.7,131.62,131.58,9.78882769]
[1763429291667,5.77113274,131.6,131.57,9.78882769]
[1763429291873,5.77113274,131.6,131.57,10.48882769]
[1763429292176,5.77113274,131.61,131.58,0.7]
[1763429295066,6.49113274,131.61,131.57,9.78882769]
[1763429295240,6.49113274,131.61,131.57,16.67266552]
[1763429295878,6.49113274,131.61,131.57,10.48882769]
[1763429296073,5.77113274,131.61,131.57,21.74379826]
[1763429296391,5.77113274,131.6,131.57,16.67266552]
[1763429296992,0.72,131.62,131.58,10.48882769]
[1763429296993,5.77113274,131.61,131.58,10.48882769]
[1763429297677,5.77113274,131.6,131.58,9.78882769]
[1763429297872,5.77113274,131.6,131.56,6.88383783]
[1763429298064,5.77113274,131.59,131.57,9.78882769]
[1763429298246,6.46113274,131.59,131.57,9.78882769]
[1763429298447,0.69,131.61,131.57,9.78882769]
[1763429298647,5.77113274,131.6,131.57,9.78882769]
[1763429299176,6.46113274,131.6,131.57,9.78882769]
[1763429299379,5.77113274,131.59,131.57,9.78882769]
[1763429300243,5.77113274,131.59,131.56,6.18383783]
[1763429300443,6.46113274,131.58,131.56,9.78882769]
[1763429300657,6.46113274,131.58,131.55,6.18383783]
[1763429300873,5.77113274,131.58,131.55,6.86383783]
[1763429301197,5.77113274,131.59,131.56,10.46882769]
[1763429301362,18.12096,131.62,131.56,16.23996043]
[1763429301363,18.81096,131.62,131.56,16.23996043]
[1763429301694,18.81096,131.62,131.57,0.68]
[1763429301885,5.77113274,131.61,131.57,6.45113274]
[1763429302063,24.58209274,131.62,131.58,9.78882769]
[1763429302266,24.58209274,131.62,131.58,10.46882769]
[1763429302586,0.69,131.61,131.58,10.46882769]
[1763429302789,5.77113274,131.6,131.58,9.78882769]
[1763429303097,5.77113274,131.6,131.56,22.42379826]
[1763429303295,6.46113274,131.6,131.58,9.78882769]
[1763429303594,5.77113274,131.6,131.58,9.78882769]
[1763429303986,5.77113274,131.61,131.58,9.78882769]
[1763429304289,5.77113274,131.61,131.55,15.97266552]
[1763429304290,5.77113274,131.59,131.55,15.97266552]
[1763429304516,5.77113274,131.57,131.54,6.18383783]
[1763429304997,6.46113274,131.57,131.54,6.18383783]
[1763429305684,5.77113274,131.58,131.55,9.78882769]
[1763429305988,5.77113274,131.59,131.55,15.97266552]
[1763429306188,0.69,131.58,131.55,9.78882769]
[1763429306371,5.77113274,131.58,131.55,9.78882769]
[1763429306577,0.69,131.61,131.56,10.46882769]
[1763429306792,5.77113274,131.59,131.56,9.78882769]
[1763429307267,6.46113274,131.59,131.56,9.78882769]
[1763429308489,5.77113274,131.58,131.56,9.78882769]
[1763429308795,6.46113274,131.59,131.56,9.78882769]
[1763429310298,5.77113274,131.58,131.56,9.78882769]
[1763429310765,5.77113274,131.57,131.54,6.18383783]
[1763429310970,5.77113274,131.57,131.53,22.42379826]
[1763429311188,5.77113274,131.57,131.54,6.86383783]
[1763429311391,6.46113274,131.58,131.54,6.86383783]
[1763429311691,6.46113274,131.58,131.54,0.68]
[1763429312290,6.46113274,131.58,131.54,6.86383783]
[1763429312495,18.12096,131.61,131.55,15.55996043]
[1763429312496,0.69,131.61,131.55,15.55996043]
[1763429312672,5.77113274,131.59,131.55,22.42379826]
[1763429313086,6.46113274,131.59,131.55,16.65266552]
[1763429313708,6.46113274,131.58,131.55,15.97266552]
[1763429313881,6.46113274,131.58,131.55,9.78882769]
[1763429314072,5.77113274,131.57,131.54,6.18383783]
[1763429314272,5.77113274,131.57,131.54,6.86383783]
[1763429314999,5.77113274,131.56,131.54,9.78882769]
[1763429315294,5.77113274,131.55,131.52,15.97266552]
[1763429315494,5.77113274,131.54,131.52,15.97266552]
[1763429315878,5.77113274,131.55,131.52,16.65266552]
[1763429316079,6.46113274,131.55,131.52,15.97266552]
[1763429316474,5.77113274,131.54,131.52,15.97266552]
[1763429316782,5.77113274,131.54,131.52,9.78882769]
[1763429317099,5.77113274,131.54,131.52,10.46882769]
[1763429317904,0.69,131.55,131.52,10.46882769]
[1763429318101,5.77113274,131.54,131.52,10.46882769]
[1763429318601,5.77113274,131.55,131.52,10.46882769]
[1763429319311,0.69,131.55,131.52,15.97266552]
[1763429319544,5.77113274,131.55,131.52,15.97266552]
[1763429319676,5.77113274,131.55,131.53,0.68]
[1763429319877,5.77113274,131.55,131.52,16.65266552]
[1763429320292,0.69,131.6,131.54,9.78882769]
[1763429320511,5.77113274,131.57,131.54,9.78882769]
[1763429320678,5.77113274,131.57,131.54,10.46882769]
[1763429320878,5.77113274,131.57,131.55,0.68]
[1763429321078,5.77113274,131.57,131.54,15.97266552]
[1763429321397,18.12096,131.59,131.53,6.18383783]
[1763429321572,5.77113274,131.54,131.51,6.86383783]
[1763429321780,5.77113274,131.53,131.51,6.86383783]
[1763429321981,0.69,131.6,131.52,12.67497057]
[1763429322304,5.77113274,131.58,131.55,6.18383783]
[1763429322501,5.77113274,131.57,131.55,6.18383783]
[1763429322814,0.69,131.58,131.52,12.67497057]
[1763429322980,5.77113274,131.57,131.54,6.18383783]
[1763429323181,5.77113274,131.57,131.54,6.90383783]
[1763429323404,5.77113274,131.56,131.54,10.50882769]
[1763429323595,5.77113274,131.56,131.54,9.78882769]
[1763429323904,5.77113274,131.56,131.53,6.18383783]
[1763429324088,5.77113274,131.56,131.53,6.90383783]
[1763429324483,5.77113274,131.56,131.53,6.18383783]
[1763429324702,5.77113274,131.56,131.53,6.90383783]
[1763429324904,2.37705291,131.56,131.53,6.90383783]
[1763429325412,2.37705291,131.55,131.53,0.72]
[1763429326317,3.06705291,131.54,131.52,6.18383783]
[1763429326496,2.37705291,131.53,131.52,6.18383783]
[1763429326895,2.37705291,131.54,131.52,6.18383783]
[1763429327203,2.37705291,131.54,131.51,16.69266552]
[1763429329521,9.50821164,131.58,131.5,2.37705291]
[1763429329522,3.06705291,131.53,131.5,9.78882769]
[1763429330017,2.37705291,131.53,131.51,0.72]
[1763429332126,3.06705291,131.52,131.49,6.18383783]
[1763429332298,2.37705291,131.5,131.48,15.97266552]
[1763429332691,3.06705291,131.49,131.48,6.18383783]
[1763429332887,3.06705291,131.49,131.46,6.18383783]
[1763429333083,2.37705291,131.48,131.46,6.18383783]
[1763429333290,3.06705291,131.48,131.45,6.18383783]
[1763429333893,3.06705291,131.48,131.45,6.90383783]
[1763429333894,2.37705291,131.48,131.45,6.90383783]
[1763429334488,2.37705291,131.48,131.47,6.18383783]
[1763429334711,2.37705291,131.48,131.46,10.50882769]
[1763429336101,2.37705291,131.48,131.46,9.78882769]
[1763429336300,3.06705291,131.48,131.46,9.78882769]
[1763429337321,0.69,131.48,131.45,8.56089074]
[1763429337498,2.37705291,131.5,131.46,9.78882769]
[1763429337699,0.69,131.49,131.45,16.69266552]
[1763429337918,0.69,131.49,131.45,19.06971843]
[1763429338225,3.06705291,131.49,131.46,6.18383783]
[1763429339234,3.06705291,131.48,131.45,15.97266552]
[1763429339531,3.06705291,131.48,131.45,16.69266552]
[1763429339729,2.37705291,131.49,131.45,16.69266552]
[1763429339931,20.49801291,131.52,131.45,16.69266552]
[1763429339932,3.06705291,131.5,131.46,6.90383783]
[1763429340926,3.06705291,131.51,131.47,6.90383783]
[1763429341122,3.06705291,131.51,131.47,9.28089074]
[1763429342018,3.06705291,131.51,131.49,9.78882769]
[1763429343136,3.06705291,131.51,131.47,8.56089074]
[1763429343310,3.06705291,131.51,131.47,9.28089074]
[1763429345202,2.37705291,131.5,131.47,6.18383783]
[1763429345433,0.69,131.51,131.49,9.78882769]
[1763429345635,3.06705291,131.51,131.49,9.78882769]
[1763429346131,3.06705291,131.51,131.47,9.28089074]
[1763429346935,18.12096,131.52,131.47,8.56089074]
[1763429347127,18.12096,131.52,131.46,9.78882769]
[1763429347128,9.50821164,131.58,131.5,2.37705291]
[1763429347309,102.7,131.67,131.53,9.78882769]
[1763429347310,2.37705291,131.57,131.53,9.78882769]
[1763429347515,2.37705291,131.57,131.55,9.78882769]
[1763429347733,3.06705291,131.57,131.55,9.78882769]
[1763429348037,3.06705291,131.57,131.53,10.50882769]
[1763429348938,4.40405449,131.57,131.53,10.50882769]
[1763429349228,4.40405449,131.57,131.53,16.69266552]
[1763429349634,4.40405449,131.57,131.53,20.40672001]
[1763429350021,3.71405449,131.55,131.53,15.97266552]
[1763429350225,3.71405449,131.55,131.53,9.78882769]
[1763429350728,3.71405449,131.55,131.52,6.90383783]
[1763429351311,3.71405449,131.55,131.53,9.78882769]
[1763429352319,3.71405449,131.55,131.53,15.97266552]
[1763429353833,4.42405449,131.56,131.53,15.97266552]
[1763429354353,0.71,131.58,131.55,9.78882769]
[1763429354571,18.12096,131.6,131.55,10.44882769]
[1763429354735,4.42405449,131.59,131.55,15.97266552]
[1763429354921,3.71405449,131.58,131.55,15.97266552]
[1763429355121,4.42405449,131.58,131.55,15.97266552]
[1763429355733,0.71,131.58,131.55,15.97266552]
[1763429356053,0.71,131.57,131.55,15.97266552]
[1763429356249,0.71,131.58,131.55,15.97266552]
[1763429356434,3.71405449,131.58,131.55,16.63266552]
[1763429357027,4.42405449,131.58,131.55,16.63266552]
[1763429357735,18.12096,131.61,131.56,0.66]
[1763429357934,0.71,131.6,131.57,9.78882769]
[1763429358132,3.71405449,131.6,131.57,9.78882769]
[1763429358347,3.71405449,131.61,131.59,9.78882769]
[1763429358528,4.40405449,131.61,131.59,9.78882769]
[1763429359143,4.40405449,131.61,131.57,6.18383783]
[1763429359347,3.71405449,131.6,131.57,16.65266552]
[1763429359855,4.40405449,131.6,131.57,16.65266552]
[1763429360148,3.71405449,131.64,131.57,16.65266552]
[1763429360452,3.71405449,131.6,131.57,16.65266552]
[1763429361057,4.40405449,131.61,131.57,16.65266552]
[1763429361358,3.71405449,131.64,131.59,3.71405449]
[1763429361359,3.71405449,131.63,131.59,3.71405449]
[1763429361560,0.69,131.65,131.59,9.89789232]
[1763429361746,3.71405449,131.65,131.61,13.50288218]
[1763429361946,4.40405449,131.65,131.61,14.18288218]
[1763429362157,3.71405449,131.65,131.63,9.78882769]
[1763429363061,3.71405449,131.65,131.63,0.68]
[1763429363364,3.71405449,131.65,131.62,9.78882769]
[1763429363561,3.71405449,131.65,131.59,8.11918827]
[1763429363562,3.71405449,131.63,131.6,6.18383783]
[1763429363732,3.71405449,131.62,131.59,16.65266552]
[1763429363933,3.71405449,131.62,131.6,0.68]
[1763429364135,3.71405449,131.63,131.6,0.68]
[1763429364468,4.40405449,131.64,131.6,0.68]
[1763429365549,3.71405449,131.63,131.6,0.68]
[1763429365760,3.71405449,131.62,131.59,9.78882769]
[1763429365968,3.71405449,131.63,131.61,9.78882769]
[1763429366261,3.71405449,131.64,131.61,9.78882769]
[1763429366460,0.69,131.64,131.61,9.78882769]
[1763429366767,4.40405449,131.64,131.61,9.78882769]
[1763429367938,3.71405449,131.63,131.61,9.78882769]
[1763429368445,3.71405449,131.63,131.56,30.82014827]
[1763429368446,4.40405449,131.62,131.57,6.18383783]
[1763429368646,3.71405449,131.61,131.57,9.78882769]
[1763429368852,4.40405449,131.61,131.57,10.46882769]
[1763429369045,4.40405449,131.6,131.56,9.78882769]
[1763429369270,4.40405449,131.6,131.56,10.46882769]
[1763429369766,3.71405449,131.58,131.56,9.78882769]
[1763429370139,4.40405449,131.58,131.56,9.78882769]
[1763429370339,3.71405449,131.58,131.56,9.78882769]
[1763429370556,3.71405449,131.59,131.56,10.46882769]
[1763429370748,4.40405449,131.6,131.57,9.78882769]
[1763429370948,4.40405449,131.6,131.57,0.68]
[1763429371153,4.40405449,131.6,131.56,9.78882769]
[1763429371389,4.40405449,131.59,131.56,9.78882769]
[1763429371555,4.40405449,131.59,131.56,10.46882769]
[1763429371956,4.40405449,131.59,131.57,9.78882769]
[1763429371957,3.71405449,131.59,131.57,9.78882769]
[1763429372175,3.71405449,131.62,131.59,9.78882769]
[1763429372469,102.9,131.68,131.62,9.78882769]
[1763429372470,3.71405449,131.65,131.62,9.78882769]
[1763429372964,4.40405449,131.65,131.61,9.78882769]
[1763429373268,4.40405449,131.65,131.61,10.46882769]
[1763429373442,4.40405449,131.65,131.62,0.68]
[1763429374668,3.71405449,131.66,131.62,0.68]
[1763429374876,0.69,131.67,131.62,0.68]
[1763429374877,4.40405449,131.67,131.62,4.39405449]
[1763429375539,3.71405449,131.67,131.62,4.39405449]
[1763429375745,0.69,131.66,131.62,4.39405449]
[1763429375945,3.71405449,131.65,131.6,13.50288218]
[1763429376378,4.40405449,131.64,131.6,9.78882769]
[1763429376586,0.69,131.64,131.61,0.68]
[1763429376752,0.69,131.64,131.6,3.71405449]
[1763429376946,0.69,131.64,131.6,4.39405449]
[1763429377481,4.40405449,131.64,131.61,10.46882769]
[1763429377645,3.71405449,131.65,131.61,10.46882769]
[1763429378050,4.40405449,131.65,131.61,10.46882769]
[1763429378449,0.69,131.65,131.61,10.46882769]
[1763429378766,4.40405449,131.64,131.58,6.86383783]
[1763429379083,3.71405449,131.62,131.58,9.78882769]
[1763429379605,3.71405449,131.62,131.58,10.46882769]
[1763429379606,4.40405449,131.62,131.58,10.46882769]
[1763429379875,4.40405449,131.61,131.57,9.78882769]
[1763429380177,4.40405449,131.61,131.57,10.46882769]
[1763429380564,0.69,131.61,131.58,0.68]
[1763429382071,3.71405449,131.62,131.58,0.68]
[1763429382279,4.42405449,131.62,131.58,0.68]
[1763429382757,0.71,131.62,131.58,4.39405449]
[1763429382958,3.71405449,131.63,131.58,4.39405449]
[1763429383287,4.42405449,131.63,131.59,0.68]
[1763429383876,0.71,131.62,131.59,0.68]
[1763429385084,0.71,131.62,131.58,6.86383783]
[1763429385276,3.71405449,131.63,131.59,0.68]
[1763429385477,4.42405449,131.63,131.59,0.68]
[1763429385790,4.42405449,131.62,131.59,0.68]
[1763429386089,0.71,131.62,131.59,0.68]
[1763429386794,3.71405449,131.63,131.59,0.68]
[1763429386958,0.71,131.66,131.59,0.68]
[1763429387160,3.71405449,131.65,131.61,9.78882769]
[1763429387691,4.42405449,131.65,131.61,10.46882769]
[1763429388073,4.42405449,131.65,131.61,16.65266552]
[1763429388763,0.71,131.65,131.62,0.68]
[1763429388960,0.2,131.68,131.62,4.39405449]
[1763429389164,0.91,131.68,131.63,13.50288218]
[1763429389360,0.91,131.68,131.63,14.18288218]
[1763429389569,4.42405449,131.67,131.63,9.78882769]
[1763429389781,4.42405449,131.67,131.63,10.46882769]
[1763429390099,4.42405449,131.66,131.63,9.78882769]
[1763429390389,0.71,131.66,131.62,19.68672001]
[1763429390690,0.71,131.66,131.62,20.36672001]
[1763429390912,0.71,131.66,131.63,6.18383783]
[1763429391269,4.42405449,131.66,131.63,6.18383783]
[1763429391503,3.71405449,131.64,131.62,9.78882769]
[1763429391889,4.42405449,131.64,131.61,6.18383783]
[1763429392089,0.71,131.63,131.61,6.18383783]
[1763429392403,0.71,131.63,131.62,9.78882769]
[1763429392912,18.12096,131.67,131.62,10.46882769]
[1763429393126,18.12096,131.67,131.65,9.78882769]
[1763429393404,0.71,131.66,131.65,9.78882769]
[1763429393571,18.83096,131.67,131.65,9.78882769]
[1763429393765,0.2,131.68,131.65,9.78882769]
[1763429393972,0.71,131.67,131.65,9.78882769]
[1763429394194,0.71,131.67,131.65,15.97266552]
[1763429396970,4.42405449,131.67,131.65,15.97266552]
[1763429397194,18.12096,131.65,131.64,6.18383783]
[1763429397372,3.71405449,131.65,131.64,6.18383783]
[1763429397586,4.42405449,131.65,131.64,6.18383783]
[1763429397786,4.42405449,131.66,131.63,15.97266552]
[1763429397982,3.71405449,131.66,131.63,15.97266552]
[1763429398202,4.42405449,131.66,131.63,15.97266552]
[1763429398572,0.71,131.66,131.63,15.97266552]
[1763429399311,0.71,131.66,131.64,6.18383783]
[1763429399677,4.42405449,131.66,131.64,6.18383783]
[1763429400298,0.71,131.65,131.64,6.18383783]
[1763429400499,4.42405449,131.65,131.63,15.97266552]
[1763429400671,0.71,131.65,131.63,15.97266552]
[1763429400893,4.42405449,131.64,131.63,9.78882769]
[1763429401886,0.71,131.64,131.63,9.78882769]
[1763429402094,18.12096,131.66,131.63,16.65266552]
[1763429402299,0.71,131.67,131.64,6.86383783]
[1763429402486,0.2,131.68,131.64,6.86383783]
[1763429402680,0.2,131.68,131.63,13.50288218]
[1763429402681,0.2,131.68,131.67,6.18383783]
[1763429402885,0.2,131.68,131.67,10.46882769]
[1763429403105,0.2,131.68,131.67,22.30207045]
[1763429403402,0.2,131.7,131.67,22.30207045]
[1763429403403,0.2,131.7,131.68,13.50288218]
[1763429403604,0.2,131.7,131.69,21.77170963]
[1763429403772,0.2,131.7,131.69,14.18288218]
[1763429404176,0.2,131.7,131.69,22.45032981]
[1763429404906,0.2,131.7,131.69,18.05627532]
[1763429405202,0.2,131.7,131.69,20.40044718]
[1763429405372,0.2,131.7,131.69,19.64108808]
[1763429405777,0.2,131.7,131.69,20.40044718]
[1763429406011,9.17226039,131.84,131.7,10.25882769]
[1763429406320,10.08226039,131.82,131.76,18.96108808]
[1763429406523,0.91,131.82,131.76,25.14944671]
[1763429406704,0.91,131.82,131.76,27.68223293]
[1763429407007,19.03096,131.82,131.76,27.68223293]
[1763429407209,0.91,131.82,131.76,19.43108808]
[1763429407506,19.03096,131.82,131.76,19.43108808]
[1763429407911,0.91,131.82,131.76,23.99108808]
[1763429408115,19.03096,131.82,131.76,23.99108808]
[1763429408678,0.91,131.82,131.76,23.99108808]
[1763429408883,0.2,131.82,131.79,27.90978769]